bitfinex/quotes_ETHUSD_20240603
["timestamp","ask_amount","ask_price","bid_price","bid_amount"]
[1717454739694,0.04288341,3776.7,3776.4,0.602]
[1717454740058,2.64765,3777.0,3776.4,0.602]
[1717454740258,0.04287904,3776.6,3776.4,0.602]
[1717454740468,2.64765,3777.0,3776.4,0.602]
[1717454740689,0.04286848,3776.5,3776.4,0.602]
[1717454741374,2.64765,3777.0,3776.4,0.602]
[1717454741705,0.04286848,3776.5,3776.4,0.602]
[1717454741872,2.64765,3777.0,3776.4,0.602]
[1717454742072,0.04286848,3776.5,3776.4,0.602]
[1717454742291,2.64765,3777.0,3776.4,0.602]
[1717454742603,0.04286848,3776.5,3776.4,0.602]
[1717454742763,2.64765,3777.0,3776.4,0.602]
[1717454742966,0.04289836,3776.9,3776.4,0.602]
[1717454743908,0.04289836,3776.9,3776.6,0.602]
[1717454745275,0.04289836,3776.9,3776.5,2.4254]
[1717454745276,0.04289836,3776.9,3776.8,0.602]
[1717454745809,0.04292674,3776.9,3776.8,0.602]
[1717454745974,2.6474,3777.3,3776.8,0.602]
[1717454746307,0.04291746,3776.9,3776.8,0.602]
[1717454746514,2.6474,3777.3,3776.7,1.32126577]
[1717454746822,5.10629,3777.1,3776.6,0.602]
[1717454747323,0.04290397,3777.0,3776.6,0.602]
[1717454749909,2.64767,3776.9,3776.2,2.2637]
[1717454750218,0.04292925,3776.8,3776.5,0.602]
[1717454755996,0.04292925,3776.8,3776.7,0.602]
[1717454758783,2.4587,3777.1,3776.7,0.602]
[1717454758980,0.04292925,3776.8,3776.7,0.602]
[1717454759280,2.4587,3777.1,3776.7,0.602]
[1717454759440,0.04292925,3776.8,3776.7,0.602]
[1717454759640,2.4587,3777.1,3776.7,0.602]
[1717454759851,0.04288593,3776.8,3776.7,0.602]
[1717454760058,2.4587,3777.1,3776.7,0.602]
[1717454760263,0.0429014,3776.8,3776.7,0.602]
[1717454760488,2.4587,3777.1,3776.7,0.602]
[1717454760688,0.0429014,3776.8,3776.7,0.602]
[1717454760871,2.64746,3777.2,3776.7,0.602]
[1717454761071,0.0429014,3776.8,3776.7,0.602]
[1717454761308,2.64746,3777.2,3776.7,0.602]
[1717454761479,0.04289831,3776.8,3776.7,0.602]
[1717454761781,0.04204164,3776.8,3776.7,0.602]
[1717454761979,2.64746,3777.2,3776.7,0.602]
[1717454762174,0.65523257,3777.1,3776.7,0.602]
[1717454762966,0.65523257,3777.1,3776.5,3.0897]
[1717454764085,0.04207333,3777.1,3776.7,0.602]
[1717454764604,0.04207333,3777.1,3776.9,0.602]
[1717454765107,3.0,3777.4,3776.9,0.602]
[1717454765421,3.0,3777.4,3777.1,0.602]
[1717454765560,0.04206972,3777.3,3777.1,0.602]
[1717454765986,2.64726,3777.5,3777.1,0.602]
[1717454766191,0.04208028,3777.4,3777.1,0.602]
[1717454767027,2.3954,3777.7,3777.1,0.602]
[1717454767167,0.04215012,3777.3,3777.1,0.602]
[1717454767487,2.3954,3777.7,3777.2,0.602]
[1717454768392,2.64705,3777.8,3777.2,0.602]
[1717454769003,2.64705,3777.8,3777.4,0.602]
[1717454771703,2.64705,3777.8,3777.0,5.07265]
[1717454771898,2.64705,3777.8,3777.1,1.32126577]
[1717454772113,2.3481,3778.0,3777.5,0.602]
[1717454772317,5.64683,3778.1,3777.5,0.602]
[1717454778040,2.64683,3778.1,3777.5,0.602]
[1717454778845,2.64683,3778.1,3777.4,3.0271]
[1717454779250,0.04190634,3778.0,3777.4,3.0271]
[1717454787689,2.64698,3777.9,3777.4,3.0271]
[1717454787992,2.64714,3777.7,3776.9,2.64765]
[1717454788157,0.04194762,3777.6,3777.0,1.92326577]
[1717454789280,0.04194762,3777.6,3777.0,1.32126577]
[1717454789590,0.04194762,3777.6,3777.1,0.602]
[1717454796093,2.64726,3777.5,3776.8,2.2989]
[1717454796298,2.64726,3777.5,3776.6,2.64787]
[1717454796299,5.06975,3777.3,3776.6,2.64787]
[1717454796600,5.06975,3777.3,3776.5,2.3399]
[1717454796601,0.04213736,3777.2,3776.7,1.92326577]
[1717454796753,2.64755,3777.1,3776.5,2.3399]
[1717454796947,2.64755,3777.1,3776.6,0.602]
[1717454797302,0.04203584,3777.0,3776.6,0.602]
[1717454798905,2.64768,3776.9,3776.3,2.3399]
[1717454799191,0.04201471,3776.8,3776.6,0.602]
[1717454799970,0.04201471,3776.8,3776.6,0.562]
[1717454803813,2.64747,3777.2,3776.6,0.562]
[1717454804113,0.04194123,3777.1,3776.6,0.562]
[1717454805300,0.04194123,3777.1,3776.3,1.32126577]
[1717454805494,0.04194123,3777.1,3776.7,0.562]
[1717454809787,0.04194123,3777.1,3776.3,1.32126577]
[1717454809984,2.64761,3777.0,3776.6,0.562]
[1717454810190,0.04192011,3776.9,3776.6,0.562]
[1717454815697,2.32492011,3776.9,3776.6,0.562]
[1717454819301,2.32492011,3776.9,3776.3,1.32126577]
[1717454819507,2.64775,3776.8,3776.5,0.562]
[1717454819878,0.04193302,3776.7,3776.5,0.562]
[1717454820281,2.64775,3776.8,3776.5,0.562]
[1717454820508,0.0419181,3776.6,3776.5,0.562]
[1717454821132,2.64775,3776.8,3776.5,0.562]
[1717454821301,0.04192246,3776.6,3776.5,0.562]
[1717454821786,2.64775,3776.8,3776.5,0.562]
[1717454821984,0.04175982,3776.7,3776.5,0.562]
[1717454822184,2.64775,3776.8,3776.5,0.562]
[1717454822425,0.04175982,3776.7,3776.5,0.562]
[1717454822825,0.04174926,3776.6,3776.5,0.562]
[1717454823596,0.04174926,3776.6,3775.9,2.64835]
[1717454823812,0.04175107,3776.5,3776.0,0.92023161]
[1717454824059,2.68970107,3776.5,3775.9,1.32126577]
[1717454824212,0.04174051,3776.4,3776.0,0.562]
[1717454825989,0.04174051,3776.4,3776.2,0.562]
[1717454827402,0.04174051,3776.4,3776.2,2.873]
[1717454827605,0.04174051,3776.4,3776.2,4.19426577]
[1717454827806,2.64776,3776.8,3776.2,4.19426577]
[1717454828118,2.64776,3776.8,3776.5,0.562]
[1717454828435,0.04155256,3776.7,3776.5,0.562]
[1717454828792,2.64776,3776.8,3776.5,0.562]
[1717454828999,0.041542,3776.6,3776.5,0.562]
[1717454829299,2.64776,3776.8,3776.5,0.562]
[1717454829619,0.041542,3776.6,3776.5,0.562]
[1717454830243,2.64776,3776.8,3776.5,0.562]
[1717454830428,0.041542,3776.6,3776.5,0.562]
[1717454831134,2.64776,3776.8,3776.5,0.562]
[1717454831320,0.041542,3776.6,3776.5,0.562]
[1717454831564,2.64776,3776.8,3776.5,0.562]
[1717454831713,0.041542,3776.6,3776.5,0.562]
[1717454832557,2.64776,3776.8,3776.5,0.562]
[1717454832838,0.0416317,3776.6,3776.5,0.562]
[1717454833037,2.64776,3776.8,3776.5,0.562]
[1717454833243,0.0416317,3776.6,3776.5,0.562]
[1717454834311,2.64776,3776.8,3776.5,0.562]
[1717454834553,0.0416317,3776.6,3776.5,0.562]
[1717454834713,2.64776,3776.8,3776.5,0.562]
[1717454835445,0.04164226,3776.7,3776.5,0.562]
[1717454835941,0.0416317,3776.6,3776.5,0.562]
[1717454837142,2.64776,3776.8,3776.5,0.562]
[1717454837349,0.0416317,3776.6,3776.5,0.562]
[1717454837548,2.64776,3776.8,3776.5,0.562]
[1717454837718,0.0416317,3776.6,3776.5,0.562]
[1717454837922,2.64776,3776.8,3776.5,0.562]
[1717454838098,0.0416317,3776.6,3776.5,0.562]
[1717454838300,2.64753,3777.1,3776.5,0.562]
[1717454838504,2.64753,3777.1,3776.7,0.562]
[1717454839230,0.04161518,3777.0,3776.7,0.562]
[1717454839433,0.04161518,3777.0,3776.7,2.9915]
[1717454839648,0.04161518,3777.0,3776.9,0.562]
[1717454846640,8.42856383,3777.4,3776.9,0.562]
[1717454846877,0.04172419,3777.3,3776.9,0.562]
[1717454847575,0.04172419,3777.3,3777.1,0.562]
[1717454849981,0.04172419,3777.3,3777.0,0.562]
[1717454851672,2.64746,3777.2,3777.0,0.562]
[1717454851887,2.68925716,3777.2,3776.7,3.75076577]
[1717454852196,2.68925716,3777.2,3776.9,0.562]
[1717454852629,2.6477,3776.9,3776.5,1.38018658]
[1717454852764,0.31072288,3777.2,3776.3,1.9345273]
[1717454852765,2.64783,3776.7,3776.3,1.9345273]
[1717454852968,2.64783,3776.7,3776.3,0.562]
[1717454853206,0.04169666,3776.6,3776.3,0.562]
[1717454853915,2.64795,3776.5,3776.0,1.38018658]
[1717454854118,2.6896361,3776.5,3776.0,1.38018658]
[1717454854264,2.6896361,3776.5,3775.9,1.3804007]
[1717454854467,2.64816,3776.3,3775.7,1.3804007]
[1717454854826,4.95476,3776.3,3776.0,0.562]
[1717454855112,0.0415152,3776.2,3776.0,0.562]
[1717454855282,4.95476,3776.3,3776.0,0.562]
[1717454855467,0.04150464,3776.1,3776.0,0.562]
[1717454855666,4.95476,3776.3,3776.0,0.562]
[1717454855889,0.04150464,3776.1,3776.0,0.562]
[1717454856091,4.95476,3776.3,3776.0,0.562]
[1717454858163,4.95476,3776.3,3776.2,0.562]
[1717454858473,2.64816,3776.3,3776.2,0.562]
[1717454858790,2.68955274,3776.3,3776.2,0.562]
[1717454864613,0.04139274,3776.3,3776.2,0.562]
[1717454865016,4.95428,3776.9,3776.2,1.88326577]
[1717454865174,0.04132525,3776.3,3776.2,1.32126577]
[1717454865507,0.04132089,3776.3,3776.2,1.88326577]
[1717454865711,4.95428,3776.9,3776.2,1.88326577]
[1717454865916,0.04132089,3776.3,3776.2,1.88326577]
[1717454866111,4.95428,3776.9,3776.2,1.88326577]
[1717454866279,0.04132089,3776.3,3776.2,1.88326577]
[1717454866479,4.95428,3776.9,3776.2,1.88326577]
[1717454866679,0.0413799,3776.8,3776.2,1.88326577]
[1717454867775,2.64785,3776.7,3776.2,0.562]
[1717454868020,2.64785,3776.7,3776.3,0.562]
[1717454868191,0.04136748,3776.6,3775.9,5.07121]
[1717454868390,0.04136748,3776.6,3776.2,0.562]
[1717454870421,0.04136748,3776.6,3775.6,3.20292072]
[1717454870422,2.64796,3776.5,3775.6,3.20292072]
[1717454870622,2.64796,3776.5,3776.1,0.562]
[1717454870915,0.04134761,3776.4,3776.1,0.562]
[1717454872578,0.04134761,3776.4,3775.8,2.4582]
[1717454872922,2.64809,3776.3,3775.6,2.64858]
[1717454873077,2.68942269,3776.3,3776.0,0.562]
[1717454874728,2.68942269,3776.3,3775.6,2.4582]
[1717454874928,2.68942269,3776.3,3776.1,0.562]
[1717454877751,2.68942269,3776.3,3776.0,0.562]
[1717454879763,2.68942269,3776.3,3775.6,2.4582]
[1717454879931,2.68942269,3776.3,3776.0,0.562]
[1717454886175,2.68942269,3776.3,3776.1,0.562]
[1717454886578,2.68942269,3776.3,3775.6,2.4582]
[1717454886780,2.68942269,3776.3,3776.0,0.562]
[1717454888755,0.04133269,3776.3,3776.0,0.562]
[1717454888978,2.64789,3776.6,3776.2,0.562]
[1717454889146,2.64789,3776.6,3775.7,2.64849]
[1717454889147,0.04127949,3776.2,3775.7,2.64849]
[1717454889339,2.64806,3776.4,3776.0,0.562]
[1717454889541,0.04126892,3776.1,3776.0,0.562]
[1717454889742,2.64806,3776.4,3776.0,0.562]
[1717454890038,0.04126892,3776.1,3776.0,0.562]
[1717454890238,2.64806,3776.4,3775.9,0.563]
[1717454890458,0.04126892,3776.1,3775.9,0.563]
[1717454890687,2.64806,3776.4,3775.9,0.563]
[1717454890892,0.04125836,3776.0,3775.9,0.563]
[1717454891402,2.64806,3776.4,3775.9,0.563]
[1717454891701,0.499926,3776.3,3775.9,0.563]
[1717454892080,0.04128259,3776.2,3775.9,0.563]
[1717454892466,2.64806,3776.4,3775.9,0.563]
[1717454897528,2.64806,3776.4,3776.1,0.563]
[1717454899433,2.64806,3776.4,3776.0,0.563]
[1717454900442,2.64782,3776.7,3776.2,0.563]
[1717454900789,0.04129699,3776.6,3776.1,2.2744]
[1717454901141,0.04129699,3776.6,3776.2,0.563]
[1717454901574,0.04129699,3776.6,3776.1,2.2744]
[1717454901698,2.64796,3776.5,3776.2,0.563]
[1717454902036,0.04129443,3776.4,3776.2,0.563]
[1717454903439,0.04129443,3776.4,3776.0,1.38049224]
[1717454903588,0.04129443,3776.4,3776.1,0.563]
[1717454905194,0.04129443,3776.4,3776.3,0.563]
[1717454905646,2.64776,3776.8,3776.3,0.563]
[1717454905848,0.04131609,3776.4,3776.2,2.9992]
[1717454906022,2.64793,3776.6,3776.3,0.563]
[1717454906225,2.64793,3776.6,3776.2,2.4362]
[1717454906507,2.64793,3776.6,3776.3,0.563]
[1717454907044,2.64793,3776.6,3776.2,2.4362]
[1717454907212,2.64793,3776.6,3776.2,2.9992]
[1717454907541,2.64793,3776.6,3776.2,0.563]
[1717454909206,2.64793,3776.6,3776.0,2.4548]
[1717454909403,2.64793,3776.6,3776.2,0.563]
[1717454910226,2.64793,3776.6,3776.0,3.77606577]
[1717454910408,2.64793,3776.6,3776.2,0.563]
[1717454910612,2.64793,3776.6,3776.0,3.77606577]
[1717454910825,2.64793,3776.6,3776.2,0.563]
[1717454917082,2.64793,3776.6,3776.4,0.563]
[1717454917430,0.04131426,3776.5,3776.4,0.563]
[1717454921443,2.64802,3776.4,3776.1,1.3804782]
[1717454921745,0.04133337,3776.3,3776.2,0.563]
[1717454923306,0.04133337,3776.3,3775.9,0.55434072]
[1717454923510,0.04133337,3776.3,3776.2,0.563]
[1717454923647,0.04133337,3776.3,3775.9,0.55434072]
[1717454923849,0.04133337,3776.3,3776.2,0.563]
[1717454927477,2.64802,3776.4,3776.2,0.563]
[1717454927980,3.152322,3776.4,3776.0,1.9434995]
[1717454928182,0.0413179,3776.3,3776.0,0.563]
[1717454931161,0.0413179,3776.3,3776.2,0.563]
[1717454934285,0.0413179,3776.3,3775.9,2.90544072]
[1717454934592,0.0413179,3776.3,3776.1,0.563]
[1717454934951,2.64777,3776.8,3776.1,0.563]
[1717454935150,2.64777,3776.8,3776.5,0.563]
[1717454938220,2.64777,3776.8,3776.3,0.563]
[1717454940685,2.64777,3776.8,3776.5,0.563]
[1717454940906,2.64756,3777.1,3776.7,0.563]
[1717454941108,2.64756,3777.1,3776.9,0.563]
[1717454942784,5.78122383,3777.2,3776.9,0.563]
[1717454943972,5.78122383,3777.2,3776.7,1.32126577]
[1717454944314,5.78122383,3777.2,3777.1,0.563]
[1717454944614,4.99702,3777.5,3777.1,0.563]
[1717454945216,2.64732,3777.5,3777.1,0.563]
[1717454952712,2.64732,3777.5,3777.3,0.563]
[1717454954610,2.64705,3777.8,3777.3,0.563]
[1717454954994,2.64705,3777.8,3777.5,0.563]
[1717454957376,2.64705,3777.8,3777.2,1.32126577]
[1717454957663,2.64705,3777.8,3777.3,0.563]
[1717454958657,0.57225657,3777.7,3777.3,0.563]
[1717454959219,0.04189236,3777.6,3777.3,0.563]
[1717454959762,2.68912236,3777.6,3777.3,0.563]
[1717454962070,2.68912236,3777.6,3776.6,2.3772]
[1717454962071,2.64738,3777.4,3776.6,2.3772]
[1717454962371,2.64738,3777.4,3776.7,1.32126577]
[1717454962576,0.04186068,3777.3,3776.7,1.32126577]
[1717454962723,0.04186068,3777.3,3776.9,0.563]
[1717454962923,0.04186068,3777.3,3776.9,1.88426577]
[1717454963477,0.04186068,3777.3,3777.0,0.563]
[1717454971853,0.04186068,3777.3,3776.9,1.32126577]
[1717454971854,2.64746,3777.2,3776.9,0.563]
[1717454972049,2.68924209,3777.2,3776.9,0.563]
[1717454973555,2.68924209,3777.2,3776.2,4.99334]
[1717454973751,2.68924209,3777.2,3776.8,0.563]
[1717454973964,2.64746,3777.2,3776.8,0.563]
[1717454974143,0.04177153,3777.1,3776.8,0.563]
[1717454977728,0.04177153,3777.1,3776.3,1.32126577]
[1717454977929,0.04177153,3777.1,3776.7,0.563]
[1717454979389,0.04177153,3777.1,3776.9,0.563]
[1717454981531,1.63152562,3777.1,3776.9,0.563]
[1717454983732,0.04177153,3777.1,3776.9,0.563]
[1717454985377,0.04177153,3777.1,3777.0,3.65556577]
[1717454985937,0.04177153,3777.1,3777.0,5.95592415]
[1717454986373,2.64726,3777.5,3777.0,5.95563548]
[1717454986542,2.64726,3777.5,3777.0,3.65556577]
[1717454986543,0.04181793,3777.1,3777.0,3.65556577]
[1717454986748,2.64726,3777.5,3777.0,6.51863745]
[1717454986947,2.64726,3777.5,3777.3,0.563]
[1717454987741,2.64726,3777.5,3776.8,3.20202072]
[1717454987950,1.58975409,3777.3,3777.2,0.563]
[1717454989084,1.58975409,3777.4,3777.2,0.563]
[1717454989291,0.04183905,3777.3,3777.2,0.563]
[1717454989643,0.04183905,3777.3,3776.7,0.55434072]
[1717454989835,0.04183905,3777.3,3777.2,0.563]
[1717454993992,4.23687496,3777.5,3777.2,0.563]
[1717454994201,0.04192871,3777.3,3777.2,0.563]
[1717454994351,4.23687496,3777.5,3777.2,0.563]
[1717454994688,4.2368059,3777.5,3777.2,0.563]
[1717454994894,0.04193927,3777.4,3777.2,0.563]
[1717454996178,0.04193927,3777.4,3776.9,1.38004807]
[1717454996372,0.04193927,3777.4,3777.2,0.563]
[1717454998053,1.63150378,3777.4,3777.2,0.563]
[1717454998500,1.63153653,3777.4,3777.2,0.563]
[1717454998994,0.04193927,3777.4,3777.2,0.563]
[1717454999366,1.63153653,3777.4,3777.2,0.563]
[1717454999569,2.64739,3777.3,3777.0,0.563]
[1717454999978,0.04191815,3777.2,3777.0,0.563]
[1717455002205,2.4823,3777.0,3776.6,1.38018623]
[1717455002503,2.68957504,3776.9,3776.4,1.38029157]
[1717455002705,2.68957504,3776.9,3776.5,0.563]
[1717455002920,2.64767,3776.9,3776.5,0.563]
[1717455003202,0.04178624,3776.8,3776.3,1.38034134]
[1717455003404,0.04178624,3776.8,3776.4,0.92023226]
[1717455003570,2.64781,3776.7,3776.2,1.38034134]
[1717455003775,2.64781,3776.7,3776.5,0.563]
[1717455003991,0.04185791,3776.6,3776.5,0.563]
[1717455008431,2.64797,3776.5,3776.1,1.38036699]
[1717455008583,2.64797,3776.5,3776.1,0.563]
[1717455008775,0.04175636,3776.4,3776.1,0.563]
[1717455009599,2.64809,3776.3,3776.0,0.563]
[1717455009928,0.04172595,3776.2,3776.0,0.563]
[1717455010134,2.64809,3776.3,3776.0,0.563]
[1717455010274,0.04171538,3776.1,3776.0,0.563]
[1717455010476,2.64809,3776.3,3776.0,0.563]
[1717455010781,0.04172595,3776.2,3776.0,0.563]
[1717455011175,2.64809,3776.3,3776.0,0.563]
[1717455011376,0.04171538,3776.1,3775.6,3.85543628]
[1717455011576,2.64809,3776.3,3776.0,0.563]
[1717455011776,2.64809,3776.3,3776.2,0.563]
[1717455014646,2.64788,3776.6,3776.2,0.563]
[1717455014808,2.64788,3776.6,3776.4,0.563]
[1717455019441,0.04166049,3776.5,3776.4,0.563]
[1717455021433,0.04166049,3776.5,3776.0,2.2744]
[1717455021639,0.04166049,3776.5,3776.3,0.563]
[1717455022203,0.04166049,3776.5,3776.0,3.59566577]
[1717455022520,0.04166049,3776.5,3776.4,0.563]
[1717455022727,0.04166049,3776.5,3776.3,0.563]
[1717455024916,0.04166049,3776.5,3776.0,3.59566577]
[1717455025116,0.04166049,3776.5,3776.3,0.563]
[1717455025862,2.64802,3776.4,3775.4,3.20306072]
[1717455026029,5.02152,3776.4,3776.2,0.563]
[1717455026215,0.04161153,3776.3,3776.2,0.563]
[1717455027722,0.04161153,3776.3,3775.4,4.02916171]
[1717455027943,2.64828,3776.1,3776.0,0.563]
[1717455028252,2.6898704,3776.1,3776.0,0.563]
[1717455030223,0.0415904,3776.1,3776.0,0.563]
[1717455030655,2.64802,3776.4,3776.0,0.563]
[1717455030982,0.04161153,3776.3,3776.2,0.563]
[1717455031661,0.0749196,3776.3,3776.2,0.563]
[1717455034877,0.0749196,3776.3,3776.2,3.0267]
[1717455035083,0.0749196,3776.3,3776.2,2.4637]
[1717455035260,2.16241859,3776.6,3776.2,3.0267]
[1717455035590,2.16241859,3776.6,3776.5,0.563]
[1717455036465,2.16241859,3776.6,3776.2,2.4637]
[1717455036683,1.59002461,3776.5,3776.4,0.563]
[1717455041888,2.16241859,3776.6,3776.4,0.563]
[1717455042109,1.59002461,3776.7,3776.4,0.563]
[1717455042271,0.57239398,3776.9,3776.6,0.563]
[1717455042272,1.59002461,3776.8,3776.6,0.563]
[1717455043413,1.59002461,3776.8,3776.7,1.32126577]
[1717455043617,1.59002461,3776.9,3776.7,3.69886577]
[1717455043816,1.59002461,3776.9,3776.8,0.563]
[1717455043994,1.59002461,3776.9,3776.8,1.88426577]
[1717455044476,1.59002461,3777.0,3776.8,1.88426577]
[1717455044676,1.59002461,3777.0,3776.9,1.88426577]
[1717455045770,1.59002461,3777.0,3776.9,1.32126577]
[1717455046129,1.59002461,3777.0,3776.9,1.88426577]
[1717455049519,0.07511111,3777.0,3776.9,1.88426577]
[1717455050224,0.07511111,3777.0,3776.9,1.32126577]
[1717455050425,0.07511111,3777.0,3776.9,1.88426577]
[1717455053124,0.64745875,3777.0,3776.9,1.88426577]
[1717455053327,0.07511111,3777.0,3776.9,1.88426577]
[1717455053794,0.64745877,3777.0,3776.9,1.88426577]
[1717455053992,2.64768,3776.9,3776.2,2.3951]
[1717455054199,2.64768,3776.9,3776.6,0.563]
[1717455054426,0.07502369,3776.8,3776.3,1.32126577]
[1717455054633,0.07502369,3776.8,3776.6,0.563]
[1717455061243,0.07502369,3776.8,3776.3,1.32126577]
[1717455061403,0.07502369,3776.8,3776.7,0.563]
[1717455061599,0.07502369,3776.8,3776.1,1.38035549]
[1717455061811,2.2855,3776.7,3776.2,2.24150361]
[1717455062015,2.2855,3776.7,3776.4,0.563]
[1717455062227,2.2855,3776.7,3776.0,4.58297749]
[1717455062228,0.07495483,3776.6,3776.3,0.563]
[1717455065144,0.07495483,3776.6,3776.4,0.563]
[1717455069199,0.07495483,3776.6,3776.5,1.32126577]
[1717455069404,0.07495483,3776.6,3776.5,0.563]
[1717455069693,1.58989886,3776.8,3776.5,0.563]
[1717455069888,0.07489917,3776.6,3776.4,1.32126577]
[1717455070095,1.58989886,3776.8,3776.5,0.563]
[1717455070257,1.58989886,3776.8,3776.7,0.563]
[1717455071987,1.58989886,3776.8,3776.6,1.32126577]
[1717455072191,1.58989886,3776.8,3776.7,0.563]
[1717455072652,2.64758,3777.1,3776.7,0.563]
[1717455072805,1.58988493,3776.8,3776.7,0.563]
[1717455076022,1.58988493,3776.8,3776.6,1.32126577]
[1717455076223,1.58988493,3776.8,3776.7,0.563]
[1717455077856,1.58988493,3776.8,3776.6,1.32126577]
[1717455078010,1.58988493,3776.8,3776.7,0.563]
[1717455078653,0.57235857,3776.8,3776.7,0.563]
[1717455078824,0.57235857,3777.0,3776.7,0.563]
[1717455079122,1.58988457,3776.8,3776.7,0.563]
[1717455079282,0.07491853,3776.8,3776.7,0.563]
[1717455079482,0.57235844,3776.9,3776.7,0.563]
[1717455079826,2.64758,3777.1,3776.7,0.563]
[1717455079827,0.07491853,3776.8,3776.7,0.563]
[1717455080125,0.57235844,3776.9,3776.7,0.563]
[1717455080308,0.074934,3776.8,3776.7,0.563]
[1717455080513,1.66481365,3776.8,3776.7,0.563]
[1717455080694,1.58987965,3776.8,3776.7,0.563]
[1717455080904,1.66481365,3776.8,3776.7,0.563]
[1717455081205,1.66481365,3776.8,3776.6,1.32126577]
[1717455081405,1.66481365,3776.8,3776.7,0.563]
[1717455085931,2.23717209,3776.8,3776.7,0.563]
[1717455087046,2.23716003,3776.8,3776.7,0.563]
[1717455087672,2.96193403,3776.8,3776.1,0.55434072]
[1717455087847,1.58987208,3776.6,3776.2,2.3006165]
[1717455088052,1.58987208,3776.6,3776.3,0.563]
[1717455088249,0.07491423,3776.5,3776.3,0.563]
[1717455091711,1.58987208,3776.7,3776.3,0.563]
[1717455092023,2.16224216,3776.8,3776.6,0.563]
[1717455094515,0.07487152,3776.7,3776.6,0.563]
[1717455094831,2.16224216,3776.8,3776.6,0.563]
[1717455095116,0.07487152,3776.7,3776.6,0.563]
[1717455095811,2.16224216,3776.8,3776.2,1.38037361]
[1717455096009,0.07487152,3776.7,3776.6,0.563]
[1717455096215,2.16224216,3776.8,3776.6,0.563]
[1717455096425,0.07487043,3776.7,3776.6,0.563]
[1717455096787,2.16224216,3776.8,3776.6,0.563]
[1717455096988,0.07487043,3776.7,3776.6,0.563]
[1717455097187,2.16224216,3776.8,3776.6,0.563]
[1717455097422,0.07487043,3776.7,3776.6,0.563]
[1717455097919,2.16224216,3776.8,3776.6,1.88426577]
[1717455098223,0.07487043,3776.7,3776.6,1.88426577]
[1717455098725,1.58987208,3776.8,3776.6,1.88426577]
[1717455098915,0.07486465,3776.7,3776.6,1.88426577]
[1717455099303,0.57235806,3776.7,3776.6,1.88426577]
[1717455099628,0.07486465,3776.7,3776.6,1.88426577]
[1717455099983,1.58988351,3776.8,3776.6,1.88426577]
[1717455100187,0.07486465,3776.7,3776.6,1.88426577]
[1717455100383,1.58988351,3776.8,3776.6,1.88426577]
[1717455100626,0.07486465,3776.7,3776.6,1.32126577]
[1717455100834,0.07486465,3776.7,3776.6,1.88426577]
[1717455100993,1.58988351,3776.8,3776.6,1.88426577]
[1717455101194,0.07486465,3776.7,3776.6,1.88426577]
[1717455101393,1.58988351,3776.8,3776.6,1.88426577]
[1717455101595,0.07486465,3776.7,3776.6,1.88426577]
[1717455101795,1.58988351,3776.8,3776.6,1.88426577]
[1717455102017,0.07486465,3776.7,3776.6,1.88426577]
[1717455102219,1.58988351,3776.8,3776.6,1.88426577]
[1717455102392,0.07486465,3776.7,3776.6,1.88426577]
[1717455102603,1.58988351,3776.8,3776.6,1.88426577]
[1717455102932,0.07486465,3776.7,3776.6,1.88426577]
[1717455103314,1.58988351,3776.8,3776.6,1.88426577]
[1717455103626,0.07486465,3776.7,3776.6,1.88426577]
[1717455104035,1.58988351,3776.8,3776.6,1.88426577]
[1717455104336,0.07486465,3776.7,3776.6,1.88426577]
[1717455104632,1.58988351,3776.8,3776.6,1.88426577]
[1717455104806,0.07486465,3776.7,3776.6,1.88426577]
[1717455105006,1.58988351,3776.8,3776.6,1.32126577]
[1717455105333,0.07486465,3776.7,3776.6,1.88426577]
[1717455106231,1.58988351,3776.8,3776.6,1.32126577]
[1717455106444,1.58988351,3776.8,3776.7,0.563]
[1717455108338,1.58987859,3776.8,3776.7,0.563]
[1717455109301,1.66473688,3776.8,3776.7,0.563]
[1717455111706,1.66473688,3776.8,3776.6,0.563]
[1717455111949,2.3982412,3776.8,3776.6,0.563]
[1717455112251,1.66473688,3776.8,3776.6,0.563]
[1717455112445,1.66473926,3776.8,3776.6,0.563]
[1717455114910,1.66473587,3776.8,3776.6,0.563]
[1717455115407,1.66473587,3776.8,3776.7,1.32126577]
[1717455115634,1.66473587,3776.8,3776.2,3.20245072]
[1717455115853,1.66473587,3776.8,3776.7,0.563]
[1717455117048,1.66473587,3776.8,3776.7,1.88426577]
[1717455118351,2.23708572,3776.8,3776.7,1.88426577]
[1717455118554,1.6647314,3776.8,3776.7,1.88426577]
[1717455120621,2.23708739,3776.8,3776.7,1.88426577]
[1717455120839,1.66473263,3776.8,3776.7,1.88426577]
[1717455121062,1.66473263,3776.8,3776.7,1.32126577]
[1717455121267,1.66473263,3776.8,3776.7,1.88426577]
[1717455121943,1.66473263,3776.8,3776.7,1.32126577]
[1717455122144,1.66473263,3776.8,3776.7,1.88426577]
[1717455122469,0.07485829,3776.8,3776.6,0.563]
[1717455122665,3.84828434,3776.7,3776.6,0.563]
[1717455122868,4.4206391,3776.7,3776.6,0.563]
[1717455123072,2.23709476,3776.7,3776.6,0.563]
[1717455123269,1.66474,3776.7,3776.6,0.563]
[1717455123477,0.64721042,3776.7,3776.6,0.563]
[1717455123658,0.07485566,3776.7,3776.6,0.563]
[1717455124035,1.58987802,3776.8,3776.6,0.563]
[1717455124234,1.66473368,3776.7,3776.6,0.563]
[1717455124627,2.23708951,3776.7,3776.6,0.563]
[1717455124832,1.66473349,3776.7,3776.6,0.563]
[1717455125231,1.66473349,3776.7,3776.4,1.38036186]
[1717455125460,1.66473349,3776.7,3776.2,2.89334072]